lending/lending_fUSD_20240621
["ID","MTS","AMOUNT","RATE_DAILY","PERIOD"]
[330111492,1718999434323,-150.0,0.0002171,2]
[330111493,1718999434332,-1500.0,0.00021711,2]
[330111494,1718999434342,-150.0,0.00021712,2]
[330111495,1718999434351,-19583.8417911,0.00021716,2]
[330111496,1718999434363,-996.70339289,0.00021716,2]
[330111497,1718999434389,-256979.92132215,0.00021716,2]
[330111498,1718999434400,-12420.64618367,0.00021716,2]
[330111506,1718999437852,-544.49802541,0.0002159,2]
[330111507,1718999437870,-1239.89733459,0.0002159,2]
[330111508,1718999437881,-696.1435457,0.0002162,2]
[330111509,1718999437898,-393.43862223,0.0002162,2]
[330111510,1718999437913,-694.81319207,0.0002162,2]
[330111511,1718999437924,-872.77080493,0.000217,2]
[330111512,1718999438011,-911.62455507,0.000217,2]
[330111513,1718999438022,-357696.98759493,0.00021716,2]
[330111516,1718999439840,-182.15457063,0.00021617,2]
[330111517,1718999439850,-11180.94113269,0.00021716,2]
[330111518,1718999439863,-258.26659757,0.00021716,2]
[330111519,1718999439946,-4485.92499844,0.00021716,2]
[330111520,1718999439958,-3950.40628861,0.00021716,2]
[330111521,1718999439970,-2808.2436028,0.00021716,2]
[330111522,1718999440107,-901.46094364,0.00021716,2]
[330111523,1718999440119,-773.95903373,0.00021716,2]
[330111524,1718999440131,-738.7893376,0.00021716,2]
[330111525,1718999440143,-271.7099987,0.00021716,2]
[330111526,1718999440155,-21169.5176462,0.00021716,2]
[330111527,1718999440271,-1028.443,0.00021716,2]
[330111528,1718999440283,-8955.59627251,0.00021716,2]
[330111529,1718999440296,-1415.55102347,0.00021716,2]
[330111530,1718999440308,-450.40162597,0.00021716,2]
[330111531,1718999441554,-1059.44000001,0.00021716,2]
[330111662,1718999442889,-36443.5,0.00021716,2]
[330111681,1718999443062,-0.00566595,0.00021716,2]
[330111683,1718999443074,-520657.12387708,0.00021716,2]
[330111686,1718999443086,-828.6250089,0.00021716,2]
[330111688,1718999443097,-450.0,0.00021716,2]
[330111691,1718999443116,-560.96590547,0.00021716,2]
[330111693,1718999443127,-332.77375826,0.00021716,2]
[330111695,1718999443138,-2759.5255178,0.00021716,2]
[330111884,1718999447005,-309.17070728,0.00021716,2]
[330111885,1718999447018,-2918.27556576,0.00021716,2]
[330111886,1718999447030,-1662.3736977,0.00021716,2]
[330111887,1718999447113,-2986.50532294,0.00021716,2]
[330111888,1718999447126,-159912.05331247,0.00021716,2]
[330111889,1718999447138,-937.88882861,0.00021716,2]
[330111890,1718999447149,-2356.43045917,0.00021716,2]
[330111891,1718999447161,-734.02466279,0.00021716,2]
[330111892,1718999447176,-781.34898574,0.00021716,2]
[330111893,1718999447187,-1062645.82631547,0.00021716,2]
[330111894,1718999447198,-8780.32353471,0.00021716,2]
[330111895,1718999447209,-319.31715993,0.00021716,2]
[330111896,1718999447221,-649.57,0.00021716,2]
[330111897,1718999447232,-4142.58559677,0.00021716,2]
[330111898,1718999447243,-1356.9970628,0.00021716,2]
[330111899,1718999447254,-12580.5765154,0.00021716,2]
[330111900,1718999447271,-440.29978316,0.00021716,2]
[330111901,1718999447287,-1898.23381044,0.00021716,2]
[330111902,1718999447299,-1973.53968626,0.00021716,2]
[330111903,1718999447311,-454.8197833,0.00021716,2]
[330111904,1718999447327,-769.1350846,0.00021716,2]
[330111906,1718999447339,-2910.55810647,0.00021716,2]
[330111908,1718999447350,-890.2,0.00021716,2]
[330111934,1718999548012,312.06,0.00025889,120]
[330111935,1718999832340,151.81,0.00020141,30]
[330111938,1719000393062,151.81,0.00019818,30]
[330111939,1719000560173,-678.98,0.0001792,2]
[330111958,1719000631987,-300.0,0.00019725,2]
[330111959,1719000631997,-518.82444517,0.0001978,2]
[330111960,1719000632009,-757.13168339,0.0001978,2]
[330111961,1719000632021,-407.32387144,0.0001978,2]
[330111962,1719000632031,-250.0,0.00019784,2]
[330111963,1719000632040,-407.39396807,0.0001981,2]
[330111964,1719000632057,-10327.84603193,0.0001981,2]
[330111965,1719000632067,-23095.64,0.00019813,2]
[330111966,1719000632076,-19596.01866887,0.00019818,2]
[330111967,1719000632085,-250.0,0.00019822,2]
[330111968,1719000632095,-159.55,0.00019871,2]
[330111969,1719000632104,-8570.0,0.000199,5]
[330111970,1719000632113,-1000.0,0.00019925,2]
[330111971,1719000632122,-1000.0,0.0002014,2]
[330111972,1719000632131,-678.98,0.00020184,2]
[330111973,1719000632141,-159.82,0.00020353,2]
[330111974,1719000632150,-159.82,0.00020367,2]
[330111975,1719000632159,-159.82,0.00020382,2]
[330111976,1719000632168,-159.82,0.00020396,2]
[330111977,1719000632178,-159.82,0.00020411,2]
[330111978,1719000632187,-159.82,0.00020425,2]
[330111979,1719000632197,-159.82,0.0002044,2]
[330111980,1719000632206,-159.82,0.00020454,2]
[330111981,1719000632215,-500.0,0.00020547,4]
[330111982,1719000632225,-312.06,0.00020711,2]
[330111983,1719000632234,-500.0,0.00020821,4]
[330111984,1719000632243,-1250.0,0.00021,2]
[330111985,1719000632254,-1000.0,0.00021027,2]
[330111986,1719000632263,-500.0,0.00021095,4]
[330111987,1719000632271,-10000.0,0.00021226,2]
[330111988,1719000632280,-500.0,0.00021369,4]
[330111989,1719000632289,-7193.83,0.00021417,2]
[330111990,1719000632298,-1022.84340255,0.00021477,2]
[330111991,1719000632307,-412.75360643,0.00021479,2]
[330111992,1719000632316,-3105.79028967,0.00021499,2]
[330111993,1719000632326,-1357.42325,0.000215,2]
[330111994,1719000632335,-318.46,0.00021517,2]
[330111995,1719000632345,-353.5,0.00021517,2]
[330111996,1719000632354,-1000.0,0.00021517,2]
[330111997,1719000632363,-2286.1067,0.00021517,2]
[330111998,1719000632373,-234.22744944,0.00021517,2]
[330111999,1719000632382,-209.00646062,0.00021606,2]
[330112000,1719000632391,-274.02,0.00021607,3]
[330112001,1719000632400,-822.07,0.00021607,3]
[330112002,1719000632410,-142333.76089298,0.00021616,2]
[330112003,1719000632421,-335.92939992,0.00021616,2]
[330112005,1719000632433,-348.89010204,0.00021616,2]
[330112008,1719000632443,-291.505,0.00021616,2]
[330112011,1719000632467,-399.12662878,0.00021616,2]
[330112013,1719000632478,-3219.86003655,0.00021616,2]
[330112015,1719000632489,-7767.3397618,0.00021616,2]
[330112017,1719000632501,-5069.16032113,0.00021616,2]
[330112019,1719000632512,-522.58091288,0.00021616,2]
[330112021,1719000632528,-279.69657276,0.00021616,2]
[330112024,1719000632540,-1098.8377003,0.00021616,2]
[330112026,1719000632555,-7571.13113139,0.00021616,2]
[330112028,1719000632566,-11548.46871997,0.00021616,2]
[330112030,1719000632604,-9903.65014736,0.00021616,2]
[330112031,1719000632617,-637.98233,0.00021616,2]
[330112034,1719000637900,-653.48923496,0.00021517,2]
[330112035,1719000637910,-6031.5904158,0.00021616,2]
[330112036,1719000637923,-1283.46999995,0.00021616,2]
[330112037,1719000637935,-765.13431762,0.00021616,2]
[330112038,1719000637965,-17046.26215657,0.00021616,2]
[330112039,1719000637977,-16349.5,0.00021616,2]
[330112040,1719000638056,-1405.60660381,0.00021616,2]
[330112041,1719000638070,-798.65000003,0.00021616,2]
[330112042,1719000638082,-2572.7999904,0.00021616,2]
[330112043,1719000638095,-4749.86869948,0.00021616,2]
[330112044,1719000638145,-279305.6738971,0.00021616,2]
[330112045,1719000638157,-293.52460162,0.00021616,2]
[330112046,1719000638171,-3448.96756255,0.00021616,2]
[330112047,1719000638234,-6997.20411728,0.00021616,2]
[330112049,1719000638245,-308454.22979971,0.00021616,2]
[330112091,1719000640015,-100917.33725737,0.00021616,2]
[330112092,1719000640160,-161078.0,0.00021616,2]
[330112093,1719000640240,-473.28023069,0.00021616,2]
[330112094,1719000640253,-1917.30000001,0.00021616,2]
[330112095,1719000640271,-5110.57347141,0.00021616,2]
[330112096,1719000640285,-306.95,0.00021616,2]
[330112097,1719000640297,-414.11999972,0.00021616,2]
[330112098,1719000640310,-2926.74437883,0.00021616,2]
[330112099,1719000640322,-1004.65594516,0.00021616,2]
[330112137,1719000643100,-1540.2460002,0.00021616,2]
[330112138,1719000643314,-6854.71061097,0.00021616,2]
[330112139,1719000643326,-505.34240987,0.00021616,2]
[330112141,1719000643414,-355.284441,0.00021616,2]
[330112157,1719000646107,-920.5590623,0.00021477,2]
[330112158,1719000646117,-260.83014124,0.00021616,2]
[330112159,1719000646207,-13800.0,0.00021616,2]
[330112160,1719000646226,-6651.65233897,0.00021616,2]
[330112161,1719000646381,-354399.999999,0.00021616,2]
[330112162,1719000646394,-3953.69733935,0.00021616,2]
[330112163,1719000646406,-14892.25625592,0.00021616,2]
[330112164,1719000646418,-9049.34034,0.00021616,2]
[330112165,1719000646430,-5453.69448194,0.00021616,2]
[330112166,1719000646487,-868.475,0.00021616,2]
[330112373,1719000786546,280.0,0.00025701,120]
[330112374,1719000966612,151.81,0.00020419,30]
[330112375,1719001080476,10000.0,0.00026,60]
[330112376,1719001105388,10000.0,0.00026,60]
[330112377,1719001131213,10000.0,0.00026,60]
[330112378,1719001151966,10000.0,0.00026,60]
[330112379,1719001193051,5656.0,0.00026,60]
[330112380,1719001533137,187.23,0.00025055,120]
[330112381,1719001587432,151.81,0.00019928,30]
[330112382,1719001758499,-178.59,0.00016096,2]
[330112383,1719001758522,-656.06,0.00018147,2]
[330112384,1719001758545,-763.2,0.00019511,2]
[330112385,1719001758566,-250.0,0.00019548,2]
[330112386,1719001825851,132.1347,0.00019548,2]
[330112399,1719001833990,-22.8653,0.00019548,2]
[330112400,1719001834000,-1475.69,0.00019933,2]
[330112401,1719001834010,-187.23,0.00020044,2]
[330112402,1719001834020,-1000.0,0.00020057,2]
[330112403,1719001834029,-250.0,0.00020107,2]
[330112404,1719001834039,-150.0,0.00020195,2]
[330112405,1719001834049,-10000.0,0.00020196,2]
[330112406,1719001834058,-159.85756079,0.00020213,2]
[330112407,1719001834068,-150.0,0.00020252,4]
[330112408,1719001834078,-5155.46,0.00020254,2]
[330112409,1719001834088,-150.0,0.0002031,4]
[330112410,1719001834099,-150.0,0.00020367,4]
[330112411,1719001834108,-656.06,0.00020411,2]
[330112412,1719001834118,-150.0,0.00020425,4]
[330112413,1719001834128,-150.0,0.00020482,4]
[330112414,1719001834138,-150.0,0.0002054,4]
[330112415,1719001834147,-500.0,0.00020547,4]
[330112416,1719001834157,-280.0,0.00020561,2]
[330112417,1719001834167,-150.0,0.00020597,4]
[330112418,1719001834177,-150.0,0.00020655,4]
[330112419,1719001834192,-150.0,0.00020712,4]
[330112420,1719001834204,-150.0,0.0002077,4]
[330112421,1719001834213,-500.0,0.00020821,4]
[330112422,1719001834222,-150.0,0.00020827,4]
[330112423,1719001834233,-150.0,0.00020885,4]
[330112424,1719001834243,-587.72466878,0.000209,3]
[330112425,1719001834253,-587.72466879,0.000209,3]
[330112426,1719001834265,-150.0,0.00020942,4]
[330112427,1719001834275,-326.00260076,0.00020958,2]
[330112428,1719001834285,-2245.01075395,0.00020958,2]
[330112429,1719001834295,-3195.84740816,0.00020958,2]
[330112430,1719001834304,-3105.79028967,0.00020967,2]
[330112431,1719001834314,-235.96,0.0002099,3]
[330112432,1719001834323,-707.92,0.0002099,3]
[330112433,1719001834333,-500.0,0.00020999,2]
[330112434,1719001834342,-150.0,0.00021,4]
[330112435,1719001834352,-1250.0,0.00021,2]
[330112436,1719001834362,-44632.52051222,0.00021,4]
[330112437,1719001834374,-15565.88789981,0.00021,4]
[330112438,1719001834400,-3466.7,0.00021,4]
[330112439,1719001834411,-387.0989336,0.00021,4]
[330112440,1719001834427,-49608.42476043,0.00021,4]
[330112441,1719001834439,-7437.2549129,0.00021,4]
[330112442,1719001834453,-1432.68764726,0.00021,4]
[330112443,1719001834464,-5370.58140367,0.00021,4]
[330112447,1719001834542,-711.6,0.00021,4]
[330112453,1719001834574,-11821.88320585,0.00021,4]
[330112455,1719001834585,-836.79969452,0.00021,4]
[330112457,1719001834597,-7016.39955096,0.00021,4]
[330112459,1719001834608,-350.0,0.00021,4]
[330112462,1719001834624,-3809.32419854,0.00021,4]
[330112464,1719001834635,-3058.47898081,0.00021,4]
[330112467,1719001834651,-637.7,0.00021,4]
[330112482,1719001838724,-180.88741055,0.00019548,2]
[330112483,1719001838735,-1812.38008227,0.00020958,2]
[330112484,1719001838843,-10700.33339952,0.00021,4]
[330112485,1719001838855,-2536.09896173,0.00021,4]
[330112486,1719001838902,-489.7303052,0.00021,4]
[330112488,1719001840840,-2890.46758372,0.00020958,2]
[330112489,1719001840853,-456.43018673,0.00020958,2]
[330112490,1719001842048,-600.96056067,0.00020958,2]
[330112491,1719001842058,-7287.50121933,0.00021,4]
[330112528,1719001843376,-17690.03550114,0.00021,4]
[330112530,1719001843388,-337480.34999999,0.00021,4]
[330112542,1719001843543,-520657.12387708,0.00021,4]
[330112543,1719001843555,-14272.0,0.00021,4]
[330112545,1719001843567,-32186.436,0.00021,4]
[330112547,1719001843579,-413.77459979,0.00021,4]
[330112549,1719001843591,-45294.78335788,0.00021,4]
[330112553,1719001843606,-346.0135875,0.00021,4]
[330112555,1719001843618,-9246.86215377,0.00021,4]
[330112557,1719001843630,-16289.06553561,0.00021,4]
[330112664,1719001846334,-6687.7,0.00021,4]
[330112667,1719001846346,-1110.65108149,0.00021,4]
[330112671,1719001846357,-6875.7,0.00021,4]
[330112674,1719001846369,-811015.35112322,0.00021,4]
[330112690,1719001846488,-124190.01116631,0.00021,4]
[330112691,1719001846500,-2722.13144878,0.00021,4]
[330112695,1719001846540,-1384.35305882,0.00021,4]
[330112698,1719001846552,-335.60142443,0.00021,4]
[330112779,1719001950447,158.29,0.0002099,30]
[330112780,1719001950752,150.5,0.0002099,30]
[330112781,1719001950817,150.5,0.0002099,30]
[330112782,1719001950917,150.5,0.0002099,30]
[330112783,1719001951085,171.0,0.0002099,30]
[330112784,1719001951116,150.5,0.0002099,30]
[330112785,1719001951277,150.5,0.0002098,30]
[330112786,1719001951465,150.5,0.0002098,30]
[330112787,1719001951498,150.5,0.0002099,30]
[330112788,1719001951604,171.0,0.0002098,30]
[330112789,1719001951631,153.22,0.0002098,30]
[330112790,1719001951687,150.5,0.0002098,30]
[330112791,1719001951718,150.5,0.0002099,30]
[330112792,1719001951882,194.0,0.0002097,30]
[330112793,1719001951929,241.67,0.0002097,30]
[330112794,1719001952158,171.0,0.0002097,30]
[330112795,1719001952224,150.5,0.0002097,30]
[330112796,1719001952260,162.17,0.0002098,30]
[330112797,1719001952506,150.5,0.0002098,30]
[330112798,1719001952708,171.0,0.00021907,30]
[330112799,1719001953025,151.28,0.0002097,30]
[330112800,1719001953285,171.0,0.00021897,30]
[330112801,1719001954057,171.0,0.00021887,30]
[330112802,1719001954589,171.0,0.0002218,30]
[330112803,1719001955191,171.0,0.0002217,30]
[330112804,1719001955929,171.0,0.00022665,30]
[330112805,1719001957043,177.0,0.00022655,30]
[330112806,1719001995403,-150.0,0.0002219,10]
[330112807,1719001995430,-150.0,0.0002219,10]
[330112808,1719001995458,-150.0,0.0002219,10]
[330112809,1719001995536,-150.0,0.00022464,10]
[330112810,1719001995561,-150.0,0.00022464,10]
[330112811,1719001995591,-150.0,0.00022464,10]
[330112812,1719001995658,-150.0,0.00022738,10]
[330112813,1719001995681,-150.0,0.00022738,10]
[330112814,1719001995706,-150.0,0.00022738,10]
[330112815,1719001995731,-150.0,0.00022738,10]
[330112816,1719001995755,-150.0,0.00022738,10]
[330112817,1719001995780,-150.0,0.00022738,10]
[330112818,1719001995852,-320.0,0.00023,10]
[330112820,1719002070179,164.89,0.0002099,30]
[330112821,1719002070207,231.0,0.0002099,30]
[330112822,1719002070815,231.0,0.0002098,30]
[330112823,1719002070958,150.5,0.0002099,30]
[330112824,1719002071526,231.0,0.0002097,30]
[330112825,1719002071673,150.5,0.0002098,30]
[330112826,1719002071996,231.0,0.00021807,30]
[330112827,1719002072878,231.0,0.00021797,30]
[330112828,1719002073422,231.0,0.00021787,30]
[330112829,1719002074024,231.0,0.0002209,30]
[330112830,1719002074640,231.0,0.0002208,30]
[330112831,1719002075293,231.0,0.0002243,30]
[330112832,1719002075905,237.0,0.0002242,30]
[330112833,1719002128517,151.81,0.00019142,30]
[330112834,1719002135830,307.80224328,0.00015,14]
[330112836,1719002201637,192.8,0.00025843,120]
[330112840,1719002281654,150.0,0.00010959,2]
[330112841,1719002281675,117.96,0.00010959,2]
[330112842,1719002292605,419.18,0.00010959,2]
[330112843,1719002303449,150.0,0.00010959,2]
[330112844,1719002303474,150.0,0.00010959,2]
[330112845,1719002303503,49.32,0.00010959,2]
[330112846,1719002314017,150.0,0.00010959,2]
[330112847,1719002314040,141.1,0.00010959,2]
[330112848,1719002324586,150.0,0.00010959,2]
[330112849,1719002324606,92.58,0.00010959,2]
[330112850,1719002335181,150.0,0.00010959,2]
[330112851,1719002335204,77.15,0.00010959,2]
[330112852,1719002335864,72.85,0.00010959,2]
[330112853,1719002335886,150.0,0.00010959,2]
[330112854,1719002335907,150.0,0.00010959,2]
[330112855,1719002335930,150.0,0.00010959,2]
[330112856,1719002335951,150.0,0.00010959,2]
[330112857,1719002335972,21.74035612,0.00010959,2]
[330112858,1719002345953,214.29,0.00010959,2]
[330112859,1719002356818,178.58,0.00010959,2]
[330112860,1719002367390,150.0,0.00010959,2]
[330112861,1719002367412,742.91,0.00010959,2]
[330112863,1719002378043,150.0,0.00010959,2]
[330112864,1719002378067,140.25999169,0.00010959,2]
[330112865,1719002435664,150.0,0.00010959,2]
[330112866,1719002435690,30.94750062,0.00010959,2]
[330112867,1719002449412,150.0,0.00010959,2]
[330112868,1719002449437,113.23883182,0.00010959,2]
[330112869,1719002477065,150.0,0.00010959,2]
[330112870,1719002477089,94.64167304,0.00010959,2]
[330112871,1719002525190,150.0,0.00010959,2]
[330112872,1719002525211,73.96008853,0.00010959,2]
[330112873,1719002694891,151.81,0.00018849,30]
[330112874,1719002811180,-157.14054431,0.000112,2]
[330112915,1719003032480,-645.06336844,0.000112,2]
[330112917,1719003032492,-519.79555506,0.0001164,2]
[330112919,1719003032501,-587.71262734,0.00011641,2]
[330112921,1719003032510,-150.0,0.00011741,2]
[330112922,1719003032519,-4988.81650323,0.000118,2]
[330112924,1719003032532,-155.0,0.00012148,2]
[330112926,1719003032541,-155.0,0.00012289,2]
[330112928,1719003032550,-150.0,0.00012299,2]
[330112930,1719003032559,-79675.383382,0.000123,2]
[330112932,1719003032571,-37288.18443365,0.000123,2]
[330112936,1719003032600,-39612.63524486,0.000123,2]
[330112938,1719003032611,-559.75762178,0.000123,2]
[330112940,1719003032623,-79519.27568742,0.000123,2]
[330112942,1719003032635,-322.719495,0.000123,2]
[330112946,1719003032662,-286.18192272,0.000123,2]
[330112948,1719003032674,-1173.210827,0.000123,2]
[330112952,1719003032701,-15784.55121828,0.000123,2]
[330112954,1719003032712,-607.18,0.00012404,2]
[330112955,1719003032721,-669.695606,0.00012572,2]
[330112957,1719003032730,-150.0,0.00012573,2]
[330112959,1719003032743,-250.0,0.00012573,2]
[330112961,1719003032752,-529.41988133,0.00012639,2]
[330112963,1719003032762,-677.22,0.0001264,2]
[330112965,1719003032771,-7791.43,0.00012875,2]
[330112967,1719003032781,-150.0,0.00012877,2]
[330112969,1719003032792,-176.86075006,0.00012962,2]
[330112971,1719003032802,-158.46,0.00012998,2]
[330112972,1719003032812,-11947.88459908,0.00013,2]
[330112973,1719003032822,-7162.73781747,0.00013,2]
[330112974,1719003032831,-23890.0,0.00013021,2]
[330112975,1719003032840,-1000.0,0.00013062,2]
[330112981,1719003032851,-168.0,0.00013199,2]
[330112983,1719003032911,-299.99,0.00013283,2]
[330112985,1719003032921,-1671.15,0.00013318,2]
[330112987,1719003032930,-158.46,0.00013337,2]
[330112989,1719003032939,-283.87,0.00013444,2]
[330112991,1719003032948,-304.92097551,0.00013576,2]
[330112993,1719003032957,-675.69,0.00013669,2]
[330112995,1719003032966,-158.46,0.00013676,2]
[330112997,1719003032974,-210.80470446,0.0001379,2]
[330112999,1719003032983,-210.80470442,0.0001379,2]
[330113001,1719003032993,-325.84055461,0.000139,2]
[330113003,1719003033002,-138526.66181581,0.00014,2]
[330113005,1719003033011,-150.99,0.00014,2]
[330113007,1719003033021,-1106.19043976,0.00014579,2]
[330113009,1719003033031,-4123.2,0.0001458,2]
[330113011,1719003033041,-210.80470442,0.00014582,2]
[330113013,1719003033052,-1000.0,0.00014695,2]
[330113015,1719003033062,-168.0,0.00014849,2]
[330113017,1719003033072,-2157.09,0.00014996,2]
[330113019,1719003033081,-169.48516651,0.00015,2]
[330113021,1719003033090,-10000.0,0.00015158,2]
[330113023,1719003033099,-250.0,0.00015484,2]
[330113025,1719003033109,-210.80470442,0.00015485,2]
[330113027,1719003033118,-5155.46,0.00015525,2]
[330113029,1719003033128,-17109.17,0.00015537,2]
[330113030,1719003033137,-176.86075003,0.00015608,2]
[330113032,1719003033147,-675.69,0.00015933,2]
[330113034,1719003033156,-1000.0,0.00016328,2]
[330113036,1719003033166,-210.80470442,0.00016387,2]
[330113038,1719003033175,-168.0,0.00016499,2]
[330113040,1719003033184,-325.84055459,0.00016897,2]
[330113042,1719003033193,-210.80470442,0.0001729,2]
[330113044,1719003033204,-2157.09,0.00017736,2]
[330113046,1719003033214,-1000.0,0.00017961,2]
[330113048,1719003033223,-168.0,0.00018149,2]
[330113050,1719003033235,-210.80470442,0.00018192,2]
[330113052,1719003033244,-675.69,0.00018197,2]
[330113054,1719003033253,-527.53,0.0001825,2]
[330113056,1719003033262,-176.86075003,0.00018254,2]
[330113058,1719003033272,-169.54,0.00018453,2]
[330113060,1719003033281,-1352.31,0.0001879,2]
[330113062,1719003033292,-192.8,0.00018795,2]
[330113064,1719003033302,-1000.0,0.00018848,2]
[330113067,1719003033313,-150.0,0.00018888,2]
[330113069,1719003033322,-5000.0,0.0001894,2]
[330113070,1719003033331,-150.0,0.00018941,2]
[330113072,1719003033341,-150.0,0.00018995,2]
[330113074,1719003033350,-150.0,0.00019049,2]
[330113076,1719003033359,-210.80470442,0.00019095,2]
[330113078,1719003033368,-150.0,0.00019103,2]
[330113080,1719003033377,-150.0,0.00019157,2]
[330113082,1719003033386,-150.0,0.00019211,4]
[330113084,1719003033395,-150.0,0.00019264,4]
[330113086,1719003033404,-150.0,0.00019318,4]
[330113088,1719003033413,-150.0,0.00019372,4]
[330113090,1719003033423,-150.0,0.00019426,4]
[330113092,1719003033432,-150.0,0.0001948,4]
[330113094,1719003033441,-150.0,0.00019533,4]
[330113096,1719003033450,-150.0,0.00019587,4]
[330113098,1719003033459,-1000.0,0.00019594,2]
[330113100,1719003033468,-150.0,0.00019641,4]
[330113102,1719003033477,-150.0,0.00019695,4]
[330113103,1719003033486,-150.0,0.00019749,4]
[330113105,1719003033496,-168.0,0.00019799,2]
[330113107,1719003033504,-150.0,0.00019802,4]
[330113109,1719003033514,-756.84,0.00019843,2]
[330113111,1719003033523,-756.84,0.00019848,2]
[330113113,1719003033531,-756.84,0.00019854,2]
[330113115,1719003033540,-150.0,0.00019856,4]
[330113117,1719003033550,-756.84,0.00019859,2]
[330113119,1719003033559,-756.84,0.00019864,2]
[330113121,1719003033568,-756.84,0.00019869,2]
[330113123,1719003033579,-756.84,0.00019875,2]
[330113125,1719003033596,-756.84,0.0001988,2]
[330113127,1719003033607,-756.84,0.00019885,2]
[330113129,1719003033617,-756.84,0.0001989,2]
[330113131,1719003033634,-325.84055459,0.00019893,2]
[330113133,1719003033654,-756.84,0.00019896,2]
[330113134,1719003033676,-756.84,0.00019901,2]
[330113135,1719003033696,-756.84,0.00019906,2]
[330113136,1719003033712,-150.0,0.0001991,4]
[330113137,1719003033721,-1627.6013862,0.0001991,2]
[330113138,1719003033730,-756.84,0.00019911,2]
[330113139,1719003033740,-756.84,0.00019916,2]
[330113140,1719003033749,-756.84,0.00019922,2]
[330113141,1719003033758,-756.84,0.00019927,2]
[330113142,1719003033766,-756.84,0.00019932,2]
[330113143,1719003033775,-756.84,0.00019937,2]
[330113144,1719003033784,-756.84,0.00019943,2]
[330113145,1719003033794,-150.0,0.00019964,4]
[330113146,1719003033803,-210.80470442,0.00019997,2]
[330113147,1719003033812,-1277.45304415,0.0002,2]
[330113148,1719003033822,-187.89378223,0.0002,2]
[330113149,1719003033831,-150.0,0.00020018,4]
[330113150,1719003033841,-852.58,0.00020055,2]
[330113151,1719003033850,-418.27,0.00020055,2]
[330113152,1719003033859,-418.27,0.00020055,2]
[330113153,1719003033868,-852.58,0.00020055,2]
[330113154,1719003033877,-852.58,0.00020055,2]
[330113155,1719003033886,-418.27,0.00020055,2]
[330113156,1719003033895,-852.58,0.00020055,2]
[330113157,1719003033903,-418.27,0.00020055,2]
[330113158,1719003033912,-418.27,0.00020055,2]
[330113159,1719003033922,-852.58,0.00020055,2]
[330113160,1719003033931,-852.58,0.00020055,2]
[330113161,1719003033939,-417.67,0.00020055,2]
[330113162,1719003033948,-852.58,0.00020055,2]
[330113163,1719003033957,-150.0,0.00020072,4]
[330113164,1719003033966,-150.0,0.00020125,4]
[330113165,1719003033975,-150.0,0.00020179,4]
[330113166,1719003033984,-172.53,0.00020198,2]
[330113167,1719003033993,-300.0,0.000202,7]
[330113168,1719003034002,-150.0,0.00020233,4]
[330113169,1719003034011,-150.0,0.00020287,4]
[330113170,1719003034020,-600.0,0.000203,7]
[330113171,1719003034029,-150.0,0.00020341,4]
[330113172,1719003034038,-150.0,0.00020394,4]
[330113173,1719003034046,-900.0,0.000204,7]
[330113174,1719003034055,-150.0,0.00020448,4]
[330113175,1719003034065,-675.69,0.00020461,2]
[330113176,1719003034074,-2157.09,0.00020475,2]
[330113177,1719003034083,-1200.0,0.000205,7]